fUSD/lending_fUSD_20241108
["ID","MTS","AMOUNT","RATE_DAILY","PERIOD"]
[341615389,1731036647271,-500.0,0.00027397,2]
[341615390,1731036647281,-500.0,0.00027397,2]
[341615391,1731036647290,-3293.38,0.00027397,2]
[341615392,1731036647299,-161.884909,0.00027397,2]
[341615393,1731036647309,-500.0,0.00027397,2]
[341615394,1731036647319,-500.0,0.00027397,2]
[341615395,1731036647328,-500.0,0.00027397,2]
[341615396,1731036647337,-500.0,0.00027397,2]
[341615397,1731036647346,-500.0,0.00027397,2]
[341615398,1731036647355,-537.93563522,0.00027397,2]
[341615399,1731036647364,-500.0,0.00027397,2]
[341615400,1731036647373,-534.81073194,0.00027397,2]
[341615401,1731036647382,-560.97,0.00027397,2]
[341615402,1731036647391,-507.73467729,0.00027397,2]
[341615403,1731036647400,-845.67,0.00027397,2]
[341615404,1731036647409,-500.0,0.00027397,2]
[341615405,1731036647419,-500.0,0.00027397,2]
[341615406,1731036647429,-500.0,0.00027397,2]
[341615407,1731036647439,-500.0,0.00027397,2]
[341615408,1731036647448,-500.0,0.00027397,2]
[341615409,1731036647457,-500.0,0.00027397,2]
[341615410,1731036647466,-500.0,0.00027397,2]
[341615411,1731036647475,-500.0,0.00027397,2]
[341615412,1731036647484,-508.3111931,0.00027397,2]
[341615413,1731036647493,-507.29,0.00027397,2]
[341615414,1731036647505,-500.0,0.00027397,2]
[341615415,1731036647629,-500.0,0.00027397,2]
[341615416,1731036647638,-500.0,0.00027397,2]
[341615417,1731036647648,-500.0,0.00027397,2]
[341615418,1731036647657,-500.0,0.00027397,2]
[341615419,1731036647666,-500.0,0.00027397,2]
[341615420,1731036647675,-500.0,0.00027397,2]
[341615421,1731036647684,-500.0,0.00027397,2]
[341615422,1731036647694,-500.0,0.00027397,2]
[341615423,1731036647703,-599.75371319,0.00027397,2]
[341615424,1731036647712,-500.0,0.00027397,2]
[341615425,1731036647721,-500.0,0.00027397,2]
[341615426,1731036647730,-500.0,0.00027397,2]
[341615427,1731036647739,-500.0,0.00027397,2]
[341615428,1731036647753,-500.0,0.00027397,2]
[341615429,1731036647761,-500.0,0.00027397,2]
[341615430,1731036647770,-504.27,0.00027397,2]
[341615431,1731036647779,-500.0,0.00027397,2]
[341615432,1731036647788,-500.0,0.00027397,2]
[341615433,1731036647798,-650.83,0.00027397,2]
[341615434,1731036647807,-500.0,0.00027397,2]
[341615435,1731036647816,-511.67778598,0.00027397,2]
[341615436,1731036647825,-662.23,0.00027397,2]
[341615437,1731036647835,-500.0,0.00027397,2]
[341615438,1731036647844,-500.0,0.00027397,2]
[341615439,1731036647853,-500.0,0.00027397,2]
[341615440,1731036647862,-584.2,0.00027397,2]
[341615441,1731036647872,-1249.49,0.00027397,2]
[341615442,1731036647880,-516.79558536,0.00027397,2]
[341615443,1731036647889,-500.0,0.00027397,2]
[341615444,1731036647898,-500.0,0.00027397,2]
[341615445,1731036647907,-510.33121416,0.00027397,2]
[341615446,1731036647916,-505.02393835,0.00027397,2]
[341615447,1731036647925,-500.0,0.00027397,2]
[341615448,1731036647934,-740.6,0.00027397,2]
[341615449,1731036647943,-500.0,0.00027397,2]
[341615450,1731036647952,-500.0,0.00027397,2]
[341615451,1731036647961,-500.0,0.00027397,2]
[341615452,1731036647970,-500.0,0.00027397,2]
[341615453,1731036647979,-500.0,0.00027397,2]
[341615454,1731036647988,-517.46991277,0.00027397,2]
[341615455,1731036648000,-809.93,0.00027397,2]
[341615456,1731036648009,-508.28647477,0.00027397,2]
[341615457,1731036648019,-234.5,0.00027397,2]
[341615458,1731036648028,-638.99,0.00027397,2]
[341615459,1731036648037,-500.0,0.00027397,2]
[341615460,1731036648046,-1011.22,0.00027397,2]
[341615461,1731036648056,-526.85,0.00027397,2]
[341615462,1731036648065,-500.0,0.00027397,2]
[341615463,1731036648074,-500.0,0.00027397,2]
[341615464,1731036648083,-500.0,0.00027397,2]
[341615465,1731036648093,-500.0,0.00027397,2]
[341615466,1731036648102,-500.0,0.00027397,2]
[341615467,1731036648111,-302.97344668,0.00027397,2]
[341615468,1731036648120,-596.26,0.00027397,2]
[341615469,1731036648129,-500.0,0.00027397,2]
[341615470,1731036648138,-227.50332617,0.00027397,2]
[341615471,1731036648147,-500.0,0.00027397,2]
[341615472,1731036648157,-500.0,0.00027397,2]
[341615473,1731036648166,-500.0,0.00027397,2]
[341615474,1731036648175,-688.6,0.00027397,2]
[341615475,1731036648185,-500.0,0.00027397,2]
[341615476,1731036648194,-515.04157226,0.00027397,2]
[341615477,1731036648203,-500.0,0.00027397,2]
[341615478,1731036648212,-510.20075176,0.00027397,2]
[341615479,1731036648221,-500.0,0.00027397,2]
[341615480,1731036648231,-597.64,0.00027397,2]
[341615481,1731036648242,-510.34070021,0.00027397,2]
[341615482,1731036648253,-500.0,0.00027397,2]
[341615483,1731036648262,-500.0,0.00027397,2]
[341615484,1731036648271,-500.0,0.00027397,2]
[341615485,1731036648281,-500.0,0.00027397,2]
[341615486,1731036648290,-500.0,0.00027397,2]
[341615487,1731036648299,-500.0,0.00027397,2]
[341615488,1731036648308,-500.0,0.00027397,2]
[341615489,1731036648319,-571.45,0.00027397,2]
[341615490,1731036648328,-579.52447233,0.00027397,2]
[341615491,1731036648338,-802.28,0.00027397,2]
[341615492,1731036648347,-500.0,0.00027397,2]
[341615493,1731036648356,-500.0,0.00027397,2]
[341615494,1731036648365,-681.34,0.00027397,2]
[341615495,1731036648374,-500.0,0.00027397,2]
[341615496,1731036648383,-500.0,0.00027397,2]
[341615497,1731036648392,-500.0,0.00027397,2]
[341615498,1731036648401,-511.29106397,0.00027397,2]
[341615499,1731036648411,-506.80198877,0.00027397,2]
[341615500,1731036648420,-542.87,0.00027397,2]
[341615501,1731036648429,-500.0,0.00027397,2]
[341615502,1731036648439,-500.0,0.00027397,2]
[341615503,1731036648448,-500.0,0.00027397,2]
[341615504,1731036648458,-502.42511813,0.00027397,2]
[341615505,1731036648467,-500.0,0.00027397,2]
[341615506,1731036648476,-643.63156321,0.00027397,2]
[341615507,1731036648485,-500.0,0.00027397,2]
[341615508,1731036648494,-509.62183206,0.00027397,2]
[341615509,1731036648505,-500.0,0.00027397,2]
[341615510,1731036648514,-500.0,0.00027397,2]
[341615511,1731036648523,-500.0,0.00027397,2]
[341615512,1731036648532,-500.0,0.00027397,2]
[341615513,1731036648541,-329.75303858,0.00027397,2]
[341615514,1731036648549,-500.0,0.00027397,2]
[341615515,1731036648559,-500.0,0.00027397,2]
[341615516,1731036648567,-1052.77,0.00027397,2]
[341615517,1731036648576,-500.0,0.00027397,2]
[341615518,1731036648585,-571.79,0.00027397,2]
[341615519,1731036648593,-511.56351104,0.00027397,2]
[341615520,1731036648602,-500.0,0.00027397,2]
[341615521,1731036648611,-500.0,0.00027397,2]
[341615522,1731036648620,-508.63707938,0.00027397,2]
[341615523,1731036648629,-526.1140704,0.00027397,2]
[341615524,1731036648637,-601.14,0.00027397,2]
[341615525,1731036648646,-500.0,0.00027397,2]
[341615526,1731036648655,-506.65754754,0.00027397,2]
[341615527,1731036648664,-500.0,0.00027397,2]
[341615528,1731036648672,-500.0,0.00027397,2]
[341615529,1731036648681,-500.0,0.00027397,2]
[341615530,1731036648690,-956.18,0.00027397,2]
[341615531,1731036648699,-500.0,0.00027397,2]
[341615532,1731036648708,-500.0,0.00027397,2]
[341615533,1731036648718,-500.0,0.00027397,2]
[341615534,1731036648728,-500.0,0.00027397,2]
[341615535,1731036648737,-510.4118784,0.00027397,2]
[341615536,1731036648745,-807.56,0.00027397,2]
[341615537,1731036648756,-509.41024588,0.00027397,2]
[341615538,1731036648766,-500.0,0.00027397,2]
[341615539,1731036648775,-509.32833717,0.00027397,2]
[341615540,1731036648784,-500.0,0.00027397,2]
[341615541,1731036648793,-508.06374646,0.00027397,2]
[341615542,1731036648802,-513.60047731,0.00027397,2]
[341615543,1731036648811,-500.0,0.00027397,2]
[341615544,1731036648820,-514.14043077,0.00027397,2]
[341615545,1731036648830,-595.95,0.00027397,2]
[341615546,1731036648839,-500.0,0.00027397,2]
[341615547,1731036648848,-583.39,0.00027397,2]
[341615548,1731036648857,-500.0,0.00027397,2]
[341615549,1731036648865,-587.93,0.00027397,2]
[341615550,1731036648875,-500.0,0.00027397,2]
[341615551,1731036648884,-500.0,0.00027397,2]
[341615552,1731036648894,-523.12053778,0.00027397,2]
[341615553,1731036648903,-800.0,0.00027397,30]
[341615554,1731036648913,-531.65,0.00027397,2]
[341615555,1731036648922,-507.83804375,0.00027397,2]
[341615556,1731036648931,-500.0,0.00027397,2]
[341615557,1731036648940,-500.0,0.00027397,2]
[341615558,1731036648949,-500.00530543,0.00027397,2]
[341615559,1731036648958,-541.79,0.00027397,2]
[341615560,1731036648967,-500.0,0.00027397,2]
[341615561,1731036648976,-875.83,0.00027397,2]
[341615562,1731036648985,-500.0,0.00027397,2]
[341615563,1731036648994,-510.31562253,0.00027397,2]
[341615564,1731036649004,-500.0,0.00027397,2]
[341615565,1731036649014,-500.0,0.00027397,2]
[341615566,1731036649023,-500.0,0.00027397,2]
[341615567,1731036649032,-500.0,0.00027397,2]
[341615568,1731036649041,-523.3092423,0.00027397,2]
[341615569,1731036649050,-500.0,0.00027397,2]
[341615570,1731036649059,-528.47074083,0.00027397,2]
[341615571,1731036649068,-500.0,0.00027397,2]
[341615572,1731036649077,-500.0,0.00027397,2]
[341615573,1731036649086,-1309.35,0.00027397,2]
[341615574,1731036649096,-500.0,0.00027397,2]
[341615575,1731036649106,-500.0,0.00027397,2]
[341615576,1731036649115,-541.42,0.00027397,2]
[341615577,1731036649124,-500.0,0.00027397,2]
[341615578,1731036649133,-500.0,0.00027397,2]
[341615579,1731036649142,-1674.13,0.00027397,2]
[341615580,1731036649151,-500.0,0.00027397,2]
[341615581,1731036649161,-546.3,0.00027397,2]
[341615582,1731036649170,-694.65,0.00027397,2]
[341615583,1731036649179,-510.22007702,0.00027397,2]
[341615584,1731036649188,-500.0,0.00027397,2]
[341615585,1731036649197,-500.0,0.00027397,2]
[341615586,1731036649206,-524.84,0.00027397,2]
[341615587,1731036649215,-606.16,0.00027397,2]
[341615588,1731036649224,-500.0,0.00027397,2]
[341615589,1731036649233,-500.0,0.00027397,2]
[341615590,1731036649246,-403.20865621,0.00027397,2]
[341615591,1731036649258,-839.56,0.00027397,2]
[341615592,1731036649267,-500.0,0.00027397,2]
[341615593,1731036649278,-1294.06,0.00027397,2]
[341615594,1731036649287,-696.1,0.00027397,2]
[341615595,1731036649297,-619.2,0.00027397,2]
[341615596,1731036649306,-605.63803791,0.00027397,2]
[341615597,1731036649316,-747.16,0.00027397,2]
[341615598,1731036649325,-500.0,0.00027397,2]
[341615599,1731036649335,-500.0,0.00027397,2]
[341615600,1731036649344,-533.0,0.00027397,2]
[341615601,1731036649354,-500.0,0.00027397,2]
[341615602,1731036649362,-647.86,0.00027397,2]
[341615603,1731036649371,-642.97,0.00027397,2]
[341615604,1731036649381,-509.86,0.00027397,2]
[341615605,1731036649389,-500.0,0.00027397,2]
[341615606,1731036649398,-858.74,0.00027397,2]
[341615607,1731036649407,-500.0,0.00027397,2]
[341615608,1731036649523,-580.96,0.00027397,2]
[341615609,1731036649533,-500.0,0.00027397,2]
[341615610,1731036649543,-500.0,0.00027397,2]
[341615611,1731036649552,-500.0,0.00027397,2]
[341615612,1731036649561,-500.0,0.00027397,2]
[341615613,1731036649571,-1012.7,0.00027397,2]
[341615614,1731036649580,-500.0,0.00027397,2]
[341615615,1731036649589,-500.0,0.00027397,2]
[341615616,1731036649598,-500.0,0.00027397,2]
[341615617,1731036649607,-989.02,0.00027397,2]
[341615618,1731036649617,-500.0,0.00027397,2]
[341615619,1731036649626,-1269.55,0.00027397,2]
[341615620,1731036649635,-500.0,0.00027397,2]
[341615621,1731036649644,-500.0,0.00027397,2]
[341615622,1731036649653,-10786.07,0.00027397,2]
[341615623,1731036649663,-561.74,0.00027397,2]
[341615624,1731036649672,-500.0,0.00027397,2]
[341615625,1731036649681,-500.0,0.00027397,2]
[341615626,1731036649690,-917.13,0.00027397,2]
[341615627,1731036649699,-1608.5,0.00027397,2]
[341615628,1731036649708,-500.0,0.00027397,2]
[341615629,1731036649719,-2030.75,0.00027397,2]
[341615630,1731036649729,-458.95779933,0.00027397,2]
[341615631,1731036649739,-500.0,0.00027397,2]
[341615632,1731036649748,-1404.94,0.00027397,2]
[341615633,1731036649758,-500.0,0.00027397,2]
[341615634,1731036649767,-947.93,0.00027397,2]
[341615635,1731036649776,-280.83623268,0.00027397,2]
[341615636,1731036649785,-500.0,0.00027397,2]
[341615637,1731036649794,-709.18,0.00027397,2]
[341615638,1731036649803,-500.0,0.00027397,2]
[341615639,1731036649812,-653.14,0.00027397,2]
[341615640,1731036649822,-1048.67,0.00027397,2]
[341615641,1731036649831,-500.0,0.00027397,2]
[341615642,1731036649841,-553.28449665,0.00027397,2]
[341615643,1731036649850,-500.0,0.00027397,2]
[341615644,1731036649860,-1698.02,0.00027397,2]
[341615645,1731036649869,-500.0,0.00027397,2]
[341615646,1731036649878,-500.0,0.00027397,2]
[341615647,1731036649888,-500.0,0.00027397,2]
[341615648,1731036649897,-500.0,0.00027397,2]
[341615649,1731036649905,-500.0,0.00027397,2]
[341615650,1731036649915,-1044.29,0.00027397,2]
[341615651,1731036649923,-1852.62,0.00027397,2]
[341615652,1731036649933,-392.96701279,0.00027397,2]
[341615653,1731036649942,-500.0,0.00027397,2]
[341615654,1731036649951,-597.33,0.00027397,2]
[341615655,1731036649960,-500.0,0.00027397,2]
[341615656,1731036649970,-537.55317003,0.00027397,2]
[341615657,1731036649980,-500.0,0.00027397,2]
[341615658,1731036649989,-505.65085407,0.00027397,2]
[341615659,1731036649999,-934.01,0.00027397,2]
[341615660,1731036650009,-500.0,0.00027397,2]
[341615661,1731036650018,-1340.85,0.00027397,2]
[341615662,1731036650028,-500.0,0.00027397,2]
[341615663,1731036650037,-563.48,0.00027397,2]
[341615664,1731036650046,-810.89,0.00027397,2]
[341615665,1731036650055,-500.0,0.00027397,2]
[341615666,1731036650064,-509.42,0.00027397,2]
[341615667,1731036650074,-717.68,0.00027397,2]
[341615668,1731036650084,-500.0,0.00027397,2]
[341615669,1731036650093,-500.0,0.00027397,2]
[341615670,1731036650102,-4267.41,0.00027397,2]
[341615671,1731036650111,-897.71,0.00027397,2]
[341615672,1731036650121,-629.67,0.00027397,2]
[341615673,1731036650131,-500.0,0.00027397,2]
[341615674,1731036650140,-500.0,0.00027397,2]
[341615675,1731036650150,-1580.6,0.00027397,2]
[341615676,1731036650159,-555.9,0.00027397,2]
[341615677,1731036650169,-500.0,0.00027397,2]
[341615678,1731036650179,-574.9,0.00027397,2]
[341615679,1731036650188,-500.0,0.00027397,2]
[341615680,1731036650197,-500.0,0.00027397,2]
[341615681,1731036650206,-500.0,0.00027397,2]
[341615682,1731036650215,-1724.82,0.00027397,2]
[341615683,1731036650225,-2432.85,0.00027397,2]
[341615684,1731036650234,-1239.47,0.00027397,2]
[341615685,1731036650246,-500.0,0.00027397,2]
[341615686,1731036650257,-693.38,0.00027397,2]
[341615687,1731036650267,-640.79,0.00027397,2]
[341615688,1731036650276,-500.0,0.00027397,2]
[341615689,1731036650286,-729.4,0.00027397,2]
[341615690,1731036650295,-500.0,0.00027397,2]
[341615691,1731036650304,-500.0,0.00027397,2]
[341615692,1731036650314,-587.24565294,0.00027397,2]
[341615693,1731036650324,-500.0,0.00027397,2]
[341615694,1731036650335,-632.9,0.00027397,2]
[341615695,1731036650344,-500.0,0.00027397,2]
[341615696,1731036650353,-2527.21,0.00027397,2]
[341615697,1731036650361,-930.77,0.00027397,2]
[341615698,1731036650370,-500.0,0.00027397,2]
[341615699,1731036650379,-500.0,0.00027397,2]
[341615700,1731036650388,-500.0,0.00027397,2]
[341615701,1731036650397,-500.0,0.00027397,2]
[341615702,1731036650406,-1817.46,0.00027397,2]
[341615703,1731036650416,-500.0,0.00027397,2]
[341615704,1731036650425,-814.64,0.00027397,2]
[341615705,1731036650435,-1000.0,0.00027397,2]
[341615706,1731036650446,-688.76,0.00027397,2]
[341615707,1731036650455,-500.0,0.00027397,2]
[341615708,1731036650464,-1353.58,0.00027397,2]
[341615709,1731036650473,-510.61,0.00027397,2]
[341615710,1731036650483,-663.61,0.00027397,2]
[341615711,1731036650492,-500.0,0.00027397,2]
[341615712,1731036650503,-652.71,0.00027397,2]
[341615713,1731036650512,-705.6,0.00027397,2]
[341615714,1731036650521,-609.05,0.00027397,2]
[341615715,1731036650530,-642.45,0.00027397,2]
[341615716,1731036650539,-500.0,0.00027397,2]
[341615717,1731036650549,-500.0,0.00027397,2]
[341615718,1731036650559,-1039.98,0.00027397,2]
[341615719,1731036650569,-613.04,0.00027397,2]
[341615720,1731036650578,-1422.73,0.00027397,2]
[341615721,1731036650588,-151.0,0.00027397,7]
[341615722,1731036650597,-291.250075,0.00027397,7]
[341615723,1731036650606,-656.0,0.00027397,2]
[341615724,1731036650615,-830.27,0.00027397,2]
[341615725,1731036650624,-539.41,0.00027397,2]
[341615726,1731036650634,-500.0,0.00027397,2]
[341615727,1731036650643,-592.27,0.00027397,2]
[341615728,1731036650652,-576.99622946,0.00027397,2]
[341615729,1731036650661,-500.0,0.00027397,2]
[341615730,1731036650670,-500.0,0.00027397,2]
[341615731,1731036650680,-3318.5,0.00027397,2]
[341615732,1731036650689,-980.97,0.00027397,2]
[341615733,1731036650698,-500.0,0.00027397,2]
[341615734,1731036650707,-514.21,0.00027397,2]
[341615735,1731036650716,-510.61599848,0.00027397,2]
[341615736,1731036650725,-5684.29,0.00027397,2]
[341615737,1731036650734,-3929.39,0.00027397,2]
[341615738,1731036650743,-500.0,0.00027397,2]
[341615739,1731036650754,-500.0,0.00027397,2]
[341615740,1731036650763,-500.0,0.00027397,2]
[341615741,1731036650773,-643.83,0.00027397,2]
[341615742,1731036650783,-611.15,0.00027397,2]
[341615743,1731036650792,-924.01,0.00027397,2]
[341615744,1731036650801,-1037.05,0.00027397,2]
[341615745,1731036650810,-1380.44,0.00027397,2]
[341615746,1731036650820,-781.18,0.00027397,2]
[341615747,1731036650829,-500.0,0.00027397,2]
[341615748,1731036650838,-500.0,0.00027397,2]
[341615749,1731036650847,-1043.77,0.00027397,2]
[341615750,1731036650856,-500.0,0.00027397,2]
[341615751,1731036650865,-2000.0,0.00027397,2]
[341615752,1731036650874,-500.0,0.00027397,2]
[341615753,1731036650883,-2415.15,0.00027397,2]
[341615754,1731036650894,-636.38,0.00027397,2]
[341615755,1731036650903,-1191.45,0.00027397,2]
[341615756,1731036650912,-605.9,0.00027397,2]
[341615757,1731036650921,-500.0,0.00027397,2]
[341615758,1731036650930,-500.0,0.00027397,2]
[341615759,1731036650940,-200.0,0.00027397,2]
[341615760,1731036650949,-1266.62,0.00027397,2]
[341615761,1731036650959,-627.72,0.00027397,2]
[341615762,1731036650968,-1839.94,0.00027397,2]
[341615763,1731036650977,-949.55,0.00027397,2]
[341615764,1731036650986,-1960.16,0.00027397,2]
[341615765,1731036650995,-881.4,0.00027397,2]
[341615766,1731036651006,-500.0,0.00027397,2]
[341615767,1731036651015,-500.0,0.00027397,2]
[341615768,1731036651024,-639.27,0.00027397,2]
[341615769,1731036651033,-500.0,0.00027397,2]
[341615770,1731036651043,-547.84,0.00027397,2]
[341615771,1731036651051,-500.0,0.00027397,2]
[341615772,1731036651060,-500.0,0.00027397,2]
[341615773,1731036651069,-500.0,0.00027397,2]
[341615774,1731036651079,-500.0,0.00027397,2]
[341615775,1731036651088,-500.0,0.00027397,2]
[341615776,1731036651097,-1646.04,0.00027397,2]
[341615777,1731036651106,-500.0,0.00027397,2]
[341615778,1731036651115,-500.0,0.00027397,2]
[341615779,1731036651124,-508.18408209,0.00027397,2]
[341615780,1731036651134,-946.27,0.00027397,2]
[341615781,1731036651143,-500.0,0.00027397,2]
[341615782,1731036651152,-500.0,0.00027397,2]
[341615783,1731036651162,-500.0,0.00027397,2]
[341615784,1731036651173,-503.19,0.00027397,2]
[341615785,1731036651183,-987.39,0.00027397,2]
[341615786,1731036651292,-500.0,0.00027397,2]
[341615787,1731036651303,-500.0,0.00027397,2]
[341615788,1731036651314,-500.0,0.00027397,2]
[341615789,1731036651322,-500.0,0.00027397,2]
[341615790,1731036651331,-153.0,0.00027397,2]
[341615791,1731036651341,-153.0,0.00027397,2]
[341615792,1731036651350,-153.0,0.00027397,2]
[341615793,1731036651359,-153.0,0.00027397,2]
[341615794,1731036651368,-153.0,0.00027397,2]
[341615795,1731036651378,-153.0,0.00027397,2]
[341615796,1731036651387,-153.0,0.00027397,2]
[341615797,1731036651395,-153.0,0.00027397,2]
[341615798,1731036651405,-153.0,0.00027397,2]
[341615799,1731036651414,-153.0,0.00027397,2]
[341615800,1731036651423,-153.0,0.00027397,2]
[341615801,1731036651433,-153.0,0.00027397,2]
[341615802,1731036651442,-153.0,0.00027397,2]
[341615803,1731036651452,-153.0,0.00027397,2]
[341615804,1731036651462,-153.0,0.00027397,2]
[341615805,1731036651471,-153.0,0.00027397,2]
[341615806,1731036651480,-153.0,0.00027397,2]
[341615807,1731036651489,-153.0,0.00027397,2]
[341615808,1731036651499,-153.0,0.00027397,2]
[341615809,1731036651509,-153.0,0.00027397,2]
[341615810,1731036651518,-153.0,0.00027397,2]
[341615811,1731036651528,-153.0,0.00027397,2]
[341615812,1731036651537,-153.0,0.00027397,2]
[341615813,1731036651547,-153.0,0.00027397,2]
[341615814,1731036651557,-153.0,0.00027397,2]
[341615815,1731036651566,-153.0,0.00027397,2]
[341615816,1731036651575,-153.0,0.00027397,2]
[341615817,1731036651584,-153.0,0.00027397,2]
[341615818,1731036651593,-153.0,0.00027397,2]
[341615819,1731036651603,-153.0,0.00027397,2]
[341615820,1731036651612,-153.0,0.00027397,2]
[341615821,1731036651621,-153.0,0.00027397,2]
[341615822,1731036651630,-153.0,0.00027397,2]
[341615823,1731036651639,-153.0,0.00027397,2]
[341615824,1731036651648,-153.0,0.00027397,2]
[341615825,1731036651657,-153.0,0.00027397,2]
[341615826,1731036651667,-153.0,0.00027397,2]
[341615827,1731036651675,-153.0,0.00027397,2]
[341615828,1731036651685,-153.0,0.00027397,2]
[341615829,1731036651694,-153.0,0.00027397,2]
[341615830,1731036651703,-153.0,0.00027397,2]
[341615831,1731036651713,-153.0,0.00027397,2]
[341615832,1731036651722,-153.0,0.00027397,2]
[341615833,1731036651731,-153.0,0.00027397,2]
[341615834,1731036651743,-153.0,0.00027397,2]
[341615835,1731036651753,-153.0,0.00027397,2]
[341615836,1731036651762,-153.0,0.00027397,2]
[341615837,1731036651771,-153.0,0.00027397,2]
[341615838,1731036651781,-153.0,0.00027397,2]
[341615839,1731036651790,-153.0,0.00027397,2]
[341615840,1731036651800,-153.0,0.00027397,2]
[341615841,1731036651809,-153.0,0.00027397,2]
[341615842,1731036651819,-153.0,0.00027397,2]
[341615843,1731036651828,-153.0,0.00027397,2]
[341615844,1731036651838,-153.0,0.00027397,2]
[341615845,1731036651847,-153.0,0.00027397,2]
[341615846,1731036651857,-153.0,0.00027397,2]
[341615847,1731036651866,-153.0,0.00027397,2]
[341615848,1731036651876,-153.0,0.00027397,2]
[341615849,1731036651885,-153.0,0.00027397,2]
[341615850,1731036651894,-153.0,0.00027397,2]
[341615851,1731036651904,-153.0,0.00027397,2]
[341615852,1731036651913,-153.0,0.00027397,2]
[341615853,1731036651923,-153.0,0.00027397,2]
[341615854,1731036651932,-153.0,0.00027397,2]
[341615855,1731036651941,-153.0,0.00027397,2]
[341615856,1731036651951,-153.0,0.00027397,2]
[341615857,1731036651960,-153.0,0.00027397,2]
[341615858,1731036651969,-153.0,0.00027397,2]
[341615859,1731036651979,-153.0,0.00027397,2]
[341615860,1731036651988,-153.0,0.00027397,2]
[341615861,1731036651998,-153.0,0.00027397,2]
[341615862,1731036652007,-153.0,0.00027397,2]
[341615863,1731036652017,-153.0,0.00027397,2]
[341615864,1731036652027,-153.0,0.00027397,2]
[341615865,1731036652037,-153.0,0.00027397,2]
[341615866,1731036652046,-153.0,0.00027397,2]
[341615867,1731036652056,-153.0,0.00027397,2]
[341615868,1731036652065,-153.0,0.00027397,2]
[341615869,1731036652074,-153.0,0.00027397,2]
[341615870,1731036652084,-153.0,0.00027397,2]
[341615871,1731036652093,-153.0,0.00027397,2]
[341615872,1731036652103,-153.0,0.00027397,2]
[341615873,1731036652112,-153.0,0.00027397,2]
[341615874,1731036652121,-153.0,0.00027397,2]
[341615875,1731036652130,-153.0,0.00027397,2]
[341615876,1731036652140,-153.0,0.00027397,2]
[341615877,1731036652149,-153.0,0.00027397,2]
[341615878,1731036652159,-153.0,0.00027397,2]
[341615879,1731036652168,-153.0,0.00027397,2]
[341615880,1731036652177,-153.0,0.00027397,2]
[341615881,1731036652186,-153.0,0.00027397,2]
[341615882,1731036652197,-153.0,0.00027397,2]
[341615883,1731036652206,-153.0,0.00027397,2]
[341615884,1731036652215,-153.0,0.00027397,2]
[341615885,1731036652225,-153.0,0.00027397,2]
[341615886,1731036652235,-153.0,0.00027397,2]
[341615887,1731036652247,-153.0,0.00027397,2]
[341615888,1731036652259,-153.0,0.00027397,2]